[Event "Early-Titled-Tuesday-Blitz-April-02-2024"]
[Site "Chess.com"]
[Date "2024.04.02"]
[Round "1"]
[White "IriBu"]
[Black "aljado"]
[Result "1-0"]
[WhiteElo "2572"]
[BlackElo "2143"]
[TimeControl "180+1"]
[EndTime "8:07:38 PDT"]
[Termination "IriBu won by resignation"]

1. e4 {[%clk 0:02:55.8]} 1... c5 {[%clk 0:02:59.5]} 2. Be2 {[%clk 0:02:54.7]}
2... e6 {[%clk 0:02:58.3]} 3. f4 {[%clk 0:02:54.8]} 3... d5 {[%clk 0:02:56.8]}
4. d3 {[%clk 0:02:54.9]} 4... Nc6 {[%clk 0:02:55.4]} 5. Nf3 {[%clk 0:02:54]}
5... Nf6 {[%clk 0:02:54.4]} 6. e5 {[%clk 0:02:53.4]} 6... Nd7 {[%clk 0:02:52.8]}
7. c3 {[%clk 0:02:52.6]} 7... d4 {[%clk 0:02:50.6]} 8. O-O {[%clk 0:02:48.3]}
8... Be7 {[%clk 0:02:47.6]} 9. Nbd2 {[%clk 0:02:46.3]} 9... b5 {[%clk
0:02:46.7]} 10. cxd4 {[%clk 0:02:42.2]} 10... cxd4 {[%clk 0:02:39.7]} 11. Ne4
{[%clk 0:02:41.1]} 11... Bb7 {[%clk 0:02:38.8]} 12. Bd2 {[%clk 0:02:39]} 12...
Nb6 {[%clk 0:02:37.5]} 13. Qe1 {[%clk 0:02:33.8]} 13... Nd5 {[%clk 0:02:37]} 14.
Qf2 {[%clk 0:02:33.9]} 14... Qb6 {[%clk 0:02:26.9]} 15. Rac1 {[%clk 0:02:18.9]}
15... Rc8 {[%clk 0:02:24]} 16. Nd6+ {[%clk 0:02:18.1]} 16... Bxd6 {[%clk
0:02:22.9]} 17. exd6 {[%clk 0:02:19]} 17... Ne3 {[%clk 0:02:07.5]} 18. Rfe1
{[%clk 0:02:05.7]} 18... Rd8 {[%clk 0:01:56.9]} 19. Ne5 {[%clk 0:01:55.6]} 19...
Rxd6 {[%clk 0:01:52.6]} 20. Nxc6 {[%clk 0:01:40.8]} 20... Bxc6 {[%clk
0:01:49.9]} 21. Bf3 {[%clk 0:01:40.7]} 21... Bxf3 {[%clk 0:01:34.1]} 22. Rc8+
{[%clk 0:01:26.9]} 22... Rd8 {[%clk 0:01:32.7]} 23. Rxd8+ {[%clk 0:01:25.5]}
23... Qxd8 {[%clk 0:01:33.1]} 24. Bxe3 {[%clk 0:01:18.7]} 24... Bb7 {[%clk
0:01:24.6]} 25. Bxd4 {[%clk 0:01:15.7]} 25... Qd5 {[%clk 0:01:24.8]} 26. Bxa7
{[%clk 0:01:09.7]} 26... O-O {[%clk 0:01:24.2]} 27. Bc5 {[%clk 0:01:02.1]} 27...
Rc8 {[%clk 0:01:18.9]} 28. d4 {[%clk 0:00:59.3]} 28... Qxa2 {[%clk 0:01:18]} 29.
h4 {[%clk 0:00:50.3]} 29... Qd5 {[%clk 0:01:16.9]} 30. Re5 {[%clk 0:00:48.1]}
30... Qc6 {[%clk 0:01:11.5]} 31. f5 {[%clk 0:00:48.1]} 31... exf5 {[%clk
0:01:09.4]} 32. Rxf5 {[%clk 0:00:46]} 32... Qe6 {[%clk 0:00:59]} 33. b4 {[%clk
0:00:44.8]} 33... Ra8 {[%clk 0:00:57.3]} 34. Re5 {[%clk 0:00:44.1]} 34... Qg6
{[%clk 0:00:53.8]} 35. Kh2 {[%clk 0:00:43.4]} 35... h5 {[%clk 0:00:36.5]} 36. d5
{[%clk 0:00:43.4]} 36... Rd8 {[%clk 0:00:25.9]} 37. Qf3 {[%clk 0:00:42]} 37...
f6 {[%clk 0:00:20.6]} 38. Re2 {[%clk 0:00:36.5]} 38... Rxd5 {[%clk 0:00:19.6]}
39. Qf4 {[%clk 0:00:34.7]} 39... Rd7 {[%clk 0:00:18.4]} 40. Bf2 {[%clk
0:00:26.2]} 40... Rf7 {[%clk 0:00:15.7]} 41. Bg3 {[%clk 0:00:26.1]} 41... Kh7
{[%clk 0:00:15.1]} 42. Rd2 {[%clk 0:00:21.9]} 42... Re7 {[%clk 0:00:13]} 43. Rf2
{[%clk 0:00:20]} 43... Rf7 {[%clk 0:00:11.8]} 44. Qf5 {[%clk 0:00:19.8]} 44...
Qxf5 {[%clk 0:00:11]} 45. Rxf5 {[%clk 0:00:20.7]} 45... Re7 {[%clk 0:00:11]} 46.
Rxh5+ {[%clk 0:00:20.4]} 46... Kg6 {[%clk 0:00:09]} 47. Rxb5 {[%clk 0:00:21.3]}
47... Bd5 {[%clk 0:00:07.2]} 48. Rxd5 {[%clk 0:00:19.6]} 1-0

[Event "Early-Titled-Tuesday-Blitz-April-02-2024"]
[Site "Chess.com"]
[Date "2024.04.02"]
[Round "1"]
[White "PolandHussars"]
[Black "pfalcon1949"]
[Result "1-0"]
[WhiteElo "2558"]
[BlackElo "1948"]
[TimeControl "180+1"]
[EndTime "8:07:39 PDT"]
[Termination "PolandHussars won on time"]

1. e4 {[%clk 0:03:00.2]} 1... e6 {[%clk 0:02:56]} 2. d4 {[%clk 0:02:59.9]} 2...
d5 {[%clk 0:02:55.5]} 3. Nc3 {[%clk 0:02:59.8]} 3... Bb4 {[%clk 0:02:54.6]} 4.
e5 {[%clk 0:02:59]} 4... Ne7 {[%clk 0:02:54.2]} 5. Bd2 {[%clk 0:02:58.6]} 5...
b6 {[%clk 0:02:52.4]} 6. a3 {[%clk 0:02:51.3]} 6... Bxc3 {[%clk 0:02:51.5]} 7.
bxc3 {[%clk 0:02:51.3]} 7... Qd7 {[%clk 0:02:42.9]} 8. Qg4 {[%clk 0:02:48.5]}
8... Ng6 {[%clk 0:02:38.4]} 9. h4 {[%clk 0:02:46]} 9... h5 {[%clk 0:02:37.1]}
10. Qg3 {[%clk 0:02:42.6]} 10... Ba6 {[%clk 0:02:32.8]} 11. Nf3 {[%clk
0:02:37.5]} 11... Bxf1 {[%clk 0:02:31.6]} 12. Kxf1 {[%clk 0:02:37.7]} 12... Nc6
{[%clk 0:02:32.2]} 13. Bg5 {[%clk 0:02:31.7]} 13... Nce7 {[%clk 0:02:28.3]} 14.
Nd2 {[%clk 0:02:30.3]} 14... Nf5 {[%clk 0:02:27]} 15. Qf3 {[%clk 0:02:29.3]}
15... c5 {[%clk 0:02:18.1]} 16. Qd3 {[%clk 0:02:14.9]} 16... Rc8 {[%clk
0:02:14.4]} 17. Rh3 {[%clk 0:02:08.2]} 17... cxd4 {[%clk 0:02:08.8]} 18. cxd4
{[%clk 0:02:08.2]} 18... Qc6 {[%clk 0:02:08.4]} 19. c3 {[%clk 0:02:07.9]} 19...
Qa4 {[%clk 0:01:33.4]} 20. Kg1 {[%clk 0:01:58.5]} 20... Rc7 {[%clk 0:01:27.6]}
21. f3 {[%clk 0:01:51.4]} 21... Kd7 {[%clk 0:01:11]} 22. g4 {[%clk 0:01:23.4]}
22... Nfe7 {[%clk 0:01:08.2]} 23. Bxe7 {[%clk 0:01:21.9]} 23... Kxe7 {[%clk
0:01:02.2]} 24. Qe3 {[%clk 0:01:15.6]} 24... Qc2 {[%clk 0:00:43.6]} 25. Qg5+
{[%clk 0:01:12.2]} 25... Kd7 {[%clk 0:00:40.8]} 26. gxh5 {[%clk 0:01:10.8]}
26... Qxc3 {[%clk 0:00:31.3]} 27. Re1 {[%clk 0:01:02.1]} 27... Qxd4+ {[%clk
0:00:30.9]} 28. Kh1 {[%clk 0:00:55.4]} 28... Qf2 {[%clk 0:00:23.4]} 29. Rf1
{[%clk 0:00:48.4]} 29... Qe2 {[%clk 0:00:21.1]} 30. hxg6 {[%clk 0:00:47]} 30...
fxg6 {[%clk 0:00:19.4]} 31. Rh2 {[%clk 0:00:44.8]} 31... Qd3 {[%clk 0:00:17.1]}
32. Rg1 {[%clk 0:00:44.6]} 32... Rc2 {[%clk 0:00:14.5]} 33. Qxg6 {[%clk
0:00:43.1]} 33... Rxd2 {[%clk 0:00:12.3]} 34. Qxg7+ {[%clk 0:00:43]} 34... Kc6
{[%clk 0:00:12.3]} 35. Qg3 {[%clk 0:00:21.3]} 35... Rd1 {[%clk 0:00:09.9]} 36.
Rg2 {[%clk 0:00:18.3]} 36... Rxg1+ {[%clk 0:00:08.8]} 37. Rxg1 {[%clk
0:00:19.2]} 37... Qf5 {[%clk 0:00:07.7]} 38. f4 {[%clk 0:00:19.1]} 38... Rh5
{[%clk 0:00:05.9]} 39. Kh2 {[%clk 0:00:18.8]} 39... Rh7 {[%clk 0:00:04.6]} 40.
Qg4 {[%clk 0:00:17.5]} 40... Qc2+ {[%clk 0:00:03.5]} 41. Rg2 {[%clk 0:00:17.7]}
41... Qe4 {[%clk 0:00:03.4]} 42. Qxe6+ {[%clk 0:00:17.7]} 42... Kb7 {[%clk
0:00:03.2]} 43. Qg4 {[%clk 0:00:17]} 43... Ka6 {[%clk 0:00:03.5]} 44. e6 {[%clk
0:00:17]} 44... Qe3 {[%clk 0:00:02.6]} 45. f5 {[%clk 0:00:17.2]} 45... Qd3
{[%clk 0:00:01.7]} 46. Qa4+ {[%clk 0:00:17.1]} 1-0

[Event "Early-Titled-Tuesday-Blitz-April-02-2024"]
[Site "Chess.com"]
[Date "2024.04.02"]
[Round "1"]
[White "Robert_Chessmood"]
[Black "Schattman"]
[Result "1-0"]
[WhiteElo "2970"]
[BlackElo "2531"]
[TimeControl "180+1"]
[EndTime "8:07:41 PDT"]
[Termination "Robert_Chessmood won on time"]

1. d4 {[%clk 0:03:00.9]} 1... Nf6 {[%clk 0:02:59.4]} 2. c4 {[%clk 0:03:01.2]}
2... g6 {[%clk 0:02:59.9]} 3. Nc3 {[%clk 0:03:01.4]} 3... d5 {[%clk 0:03:00.2]}
4. cxd5 {[%clk 0:03:01.3]} 4... Nxd5 {[%clk 0:03:01.1]} 5. g3 {[%clk 0:02:57.6]}
5... Nxc3 {[%clk 0:02:48.3]} 6. bxc3 {[%clk 0:02:58.5]} 6... c5 {[%clk 0:02:45]}
7. Nf3 {[%clk 0:02:57.9]} 7... Bg7 {[%clk 0:02:44.2]} 8. Bg2 {[%clk 0:02:58.2]}
8... cxd4 {[%clk 0:02:41.5]} 9. Nxd4 {[%clk 0:02:57.3]} 9... O-O {[%clk
0:02:38.1]} 10. O-O {[%clk 0:02:57.6]} 10... a6 {[%clk 0:02:34.8]} 11. Be3
{[%clk 0:02:47.9]} 11... Qc7 {[%clk 0:02:24]} 12. Qb3 {[%clk 0:02:40.3]} 12...
Nd7 {[%clk 0:02:09]} 13. Rfd1 {[%clk 0:02:40.4]} 13... Nc5 {[%clk 0:02:08.7]}
14. Qb4 {[%clk 0:02:25.9]} 14... Ne6 {[%clk 0:01:57.8]} 15. Rab1 {[%clk
0:02:09.1]} 15... Nxd4 {[%clk 0:01:52.3]} 16. Bxd4 {[%clk 0:02:09.4]} 16... Bf5
{[%clk 0:01:43.5]} 17. Qxb7 {[%clk 0:02:03.2]} 17... Qc4 {[%clk 0:01:26.6]} 18.
Rb2 {[%clk 0:01:51.8]} 18... Bxd4 {[%clk 0:01:11.3]} 19. cxd4 {[%clk 0:01:49.5]}
19... Rab8 {[%clk 0:00:42.4]} 20. Qxb8 {[%clk 0:01:46.7]} 20... Rxb8 {[%clk
0:00:43.3]} 21. Rxb8+ {[%clk 0:01:46.7]} 21... Kg7 {[%clk 0:00:43.7]} 22. e4
{[%clk 0:01:14.2]} 22... Bg4 {[%clk 0:00:36.2]} 23. f3 {[%clk 0:01:06.5]} 23...
Bd7 {[%clk 0:00:27.5]} 24. Rb2 {[%clk 0:00:51.2]} 24... Ba4 {[%clk 0:00:20.7]}
25. Rdd2 {[%clk 0:00:37.7]} 25... h5 {[%clk 0:00:20.6]} 26. h4 {[%clk
0:00:37.5]} 26... Qc3 {[%clk 0:00:19.4]} 27. d5 {[%clk 0:00:35.5]} 27... Qe3+
{[%clk 0:00:18.4]} 28. Kh2 {[%clk 0:00:35.1]} 28... g5 {[%clk 0:00:18.9]} 29.
Re2 {[%clk 0:00:33.4]} 29... Qc1 {[%clk 0:00:17.4]} 30. hxg5 {[%clk 0:00:32]}
30... Qxg5 {[%clk 0:00:17]} 31. Bh3 {[%clk 0:00:19.1]} 31... h4 {[%clk
0:00:15.8]} 32. gxh4 {[%clk 0:00:18.9]} 32... Qxh4 {[%clk 0:00:13.7]} 33. Rg2+
{[%clk 0:00:19.4]} 33... Kh6 {[%clk 0:00:09.7]} 34. Rg4 {[%clk 0:00:19.2]} 34...
Qe1 {[%clk 0:00:05.2]} 35. Rbg2 {[%clk 0:00:17.8]} 35... Bd1 {[%clk 0:00:03.8]}
36. R4g3 {[%clk 0:00:17.7]} 36... Qe3 {[%clk 0:00:03.4]} 37. Bg4 {[%clk
0:00:12.3]} 37... Qf4 {[%clk 0:00:02.7]} 38. Kg1 {[%clk 0:00:11.7]} 38... Qe3+
{[%clk 0:00:01.9]} 39. Rf2 {[%clk 0:00:11.2]} 39... Qe1+ {[%clk 0:00:01.3]} 40.
Kg2 {[%clk 0:00:11.5]} 40... Qe3 {[%clk 0:00:01.2]} 41. Rh3+ {[%clk 0:00:07.9]}
41... Kg5 {[%clk 0:00:01.5]} 42. Rh5+ {[%clk 0:00:08.2]} 1-0

[Event "Early-Titled-Tuesday-Blitz-April-02-2024"]
[Site "Chess.com"]
[Date "2024.04.02"]
[Round "1"]
[White "nikitakhoroshev"]
[Black "kereswasbest"]
[Result "1/2-1/2"]
[WhiteElo "2601"]
[BlackElo "2267"]
[TimeControl "180+1"]
[EndTime "8:07:41 PDT"]
[Termination "Game drawn by agreement"]

1. e4 {[%clk 0:03:00.9]} 1... c5 {[%clk 0:02:46.9]} 2. Nc3 {[%clk 0:02:57.1]}
2... Nc6 {[%clk 0:02:45.7]} 3. f4 {[%clk 0:02:56.4]} 3... g6 {[%clk 0:02:45.4]}
4. Nf3 {[%clk 0:02:56.1]} 4... Bg7 {[%clk 0:02:46.1]} 5. a4 {[%clk 0:02:56.3]}
5... d6 {[%clk 0:02:46]} 6. Bb5 {[%clk 0:02:56]} 6... Bd7 {[%clk 0:02:46.2]} 7.
d3 {[%clk 0:02:52.7]} 7... Nf6 {[%clk 0:02:44.9]} 8. O-O {[%clk 0:02:49.7]} 8...
a6 {[%clk 0:02:44]} 9. Bxc6 {[%clk 0:02:49.3]} 9... Bxc6 {[%clk 0:02:44.6]} 10.
e5 {[%clk 0:02:42]} 10... Nd5 {[%clk 0:02:43.1]} 11. Ne4 {[%clk 0:02:40.7]}
11... O-O {[%clk 0:02:40.6]} 12. Qe1 {[%clk 0:02:27.9]} 12... b5 {[%clk
0:02:36.8]} 13. a5 {[%clk 0:02:25.9]} 13... Nb4 {[%clk 0:02:35.6]} 14. Qf2
{[%clk 0:02:15.1]} 14... dxe5 {[%clk 0:02:25.4]} 15. Nxe5 {[%clk 0:02:05.2]}
15... Bxe4 {[%clk 0:02:19.6]} 16. dxe4 {[%clk 0:02:05]} 16... Bxe5 {[%clk
0:02:14]} 17. fxe5 {[%clk 0:02:04.3]} 17... Qd4 {[%clk 0:02:14.9]} 18. Be3
{[%clk 0:01:31.3]} 18... Qxe4 {[%clk 0:01:10.5]} 19. Bxc5 {[%clk 0:00:55.8]}
19... Nxc2 {[%clk 0:01:07.9]} 20. Rac1 {[%clk 0:00:53.9]} 20... Nb4 {[%clk
0:00:59.4]} 21. Bxe7 {[%clk 0:00:53.1]} 21... Nd3 {[%clk 0:00:52.3]} 22. Qc2
{[%clk 0:00:47]} 22... Qe3+ {[%clk 0:00:50.3]} 23. Kh1 {[%clk 0:00:41.5]} 23...
Nxc1 {[%clk 0:00:47.4]} 24. Bxf8 {[%clk 0:00:40.8]} 24... Rxf8 {[%clk
0:00:44.2]} 25. Qxc1 {[%clk 0:00:39.9]} 25... Qxe5 {[%clk 0:00:43.2]} 26. b4
{[%clk 0:00:36.9]} 26... Re8 {[%clk 0:00:39.7]} 27. Qc6 {[%clk 0:00:31.9]} 27...
Qe1 {[%clk 0:00:37.8]} 28. Kg1 {[%clk 0:00:26.3]} 28... Qe3+ {[%clk 0:00:37.3]}
29. Kh1 {[%clk 0:00:26.2]} 29... Qe6 {[%clk 0:00:37.1]} 30. Qf3 {[%clk
0:00:24.5]} 30... Rc8 {[%clk 0:00:35.6]} 31. Qb7 {[%clk 0:00:22.1]} 31... h5
{[%clk 0:00:33.8]} 32. Qb6 {[%clk 0:00:20]} 32... Qxb6 {[%clk 0:00:33.1]} 33.
axb6 {[%clk 0:00:20.9]} 33... Rc6 {[%clk 0:00:32.4]} 34. b7 {[%clk 0:00:19.6]}
34... Rb6 {[%clk 0:00:33]} 35. Rc1 {[%clk 0:00:17.9]} 35... Rxb7 {[%clk
0:00:33.3]} 36. Rc6 {[%clk 0:00:17.6]} 36... Ra7 {[%clk 0:00:33.2]} 37. Rc5
{[%clk 0:00:15.7]} 37... a5 {[%clk 0:00:31.7]} 38. bxa5 {[%clk 0:00:13.4]} 38...
Rxa5 {[%clk 0:00:31.5]} 39. Kg1 {[%clk 0:00:13.3]} 39... Ra1+ {[%clk 0:00:31.8]}
40. Kf2 {[%clk 0:00:13.7]} 40... Rb1 {[%clk 0:00:31.8]} 41. Rc8+ {[%clk
0:00:13.2]} 41... Kg7 {[%clk 0:00:32.2]} 42. Rb8 {[%clk 0:00:14.1]} 42... b4
{[%clk 0:00:32.7]} 43. Kf3 {[%clk 0:00:14.6]} 43... b3 {[%clk 0:00:33.2]} 44.
Kg3 {[%clk 0:00:14.7]} 44... b2 {[%clk 0:00:33]} 45. Rb6 {[%clk 0:00:14.9]}
45... g5 {[%clk 0:00:33.1]} 46. h3 {[%clk 0:00:15.2]} 46... h4+ {[%clk
0:00:33.1]} 47. Kg4 {[%clk 0:00:15]} 47... Rg1 {[%clk 0:00:31.6]} 48. Rxb2
{[%clk 0:00:13.8]} 48... Kg6 {[%clk 0:00:32.2]} 49. Rb6+ {[%clk 0:00:13.2]}
49... f6 {[%clk 0:00:32.7]} 50. Kf3 {[%clk 0:00:13.2]} 50... Rf1+ {[%clk
0:00:32.4]} 51. Ke2 {[%clk 0:00:13.4]} 51... Rf4 {[%clk 0:00:32.8]} 52. Rb5
{[%clk 0:00:13.1]} 52... Rf5 {[%clk 0:00:32.4]} 53. Rb4 {[%clk 0:00:13]} 53...
Rf4 {[%clk 0:00:32.8]} 54. Rb5 {[%clk 0:00:13.3]} 54... g4 {[%clk 0:00:32.4]}
55. hxg4 {[%clk 0:00:13.2]} 55... Rxg4 {[%clk 0:00:32.6]} 56. Kf3 {[%clk
0:00:13.7]} 56... Rg3+ {[%clk 0:00:33.1]} 57. Kf2 {[%clk 0:00:13.9]} 57... f5
{[%clk 0:00:33.7]} 58. Rb4 {[%clk 0:00:13.3]} 58... Kg5 {[%clk 0:00:33.9]} 59.
Rb5 {[%clk 0:00:13.8]} 1/2-1/2

[Event "Early-Titled-Tuesday-Blitz-April-02-2024"]
[Site "Chess.com"]
[Date "2024.04.02"]
[Round "1"]
[White "scarabee43"]
[Black "Kotofeyca"]
[Result "1/2-1/2"]
[WhiteElo "2817"]
[BlackElo "2499"]
[TimeControl "180+1"]
[EndTime "8:07:43 PDT"]
[Termination "Game drawn by repetition"]

1. Nf3 {[%clk 0:03:00.9]} 1... d5 {[%clk 0:03:00.2]} 2. e3 {[%clk 0:03:00.5]}
2... c6 {[%clk 0:03:01.1]} 3. c4 {[%clk 0:03:00]} 3... Nf6 {[%clk 0:03:00.7]} 4.
b3 {[%clk 0:03:00.5]} 4... Bg4 {[%clk 0:03:00.6]} 5. Bb2 {[%clk 0:03:00.7]} 5...
Nbd7 {[%clk 0:03:00.8]} 6. Be2 {[%clk 0:03:00.7]} 6... e6 {[%clk 0:03:00.9]} 7.
Nc3 {[%clk 0:02:58.7]} 7... Bd6 {[%clk 0:02:57.6]} 8. O-O {[%clk 0:02:58.6]}
8... Qe7 {[%clk 0:02:57.8]} 9. d4 {[%clk 0:02:55.3]} 9... Ba3 {[%clk 0:02:55.9]}
10. Qd2 {[%clk 0:02:49.6]} 10... Bxb2 {[%clk 0:02:36.8]} 11. Qxb2 {[%clk
0:02:49.7]} 11... O-O {[%clk 0:02:36.8]} 12. Rac1 {[%clk 0:02:37.7]} 12... h6
{[%clk 0:02:32]} 13. Rfd1 {[%clk 0:02:33.8]} 13... a6 {[%clk 0:02:26.8]} 14. h3
{[%clk 0:02:31.3]} 14... Bf5 {[%clk 0:02:20.3]} 15. b4 {[%clk 0:02:27.5]} 15...
Ne4 {[%clk 0:02:17.7]} 16. Nxe4 {[%clk 0:02:23]} 16... Bxe4 {[%clk 0:02:17.5]}
17. Nd2 {[%clk 0:02:13.8]} 17... Bg6 {[%clk 0:02:12.2]} 18. Nb3 {[%clk
0:02:13.9]} 18... Rfc8 {[%clk 0:02:03.3]} 19. Na5 {[%clk 0:02:04]} 19... b5
{[%clk 0:01:51.6]} 20. c5 {[%clk 0:01:46.6]} 20... e5 {[%clk 0:01:49.6]} 21. Nb7
{[%clk 0:01:43.2]} 21... exd4 {[%clk 0:01:30.3]} 22. exd4 {[%clk 0:01:43.6]}
22... Nf6 {[%clk 0:01:26.7]} 23. Nd6 {[%clk 0:01:43.3]} 23... Rcb8 {[%clk
0:01:23.3]} 24. Bf3 {[%clk 0:01:35]} 24... Ne8 {[%clk 0:01:18.4]} 25. Re1 {[%clk
0:01:34.8]} 25... Qd7 {[%clk 0:01:18.7]} 26. Bg4 {[%clk 0:01:10.1]} 26... Qc7
{[%clk 0:01:04.8]} 27. Nf5 {[%clk 0:01:04.3]} 27... Bxf5 {[%clk 0:01:03.2]} 28.
Bxf5 {[%clk 0:01:04.7]} 28... Nf6 {[%clk 0:00:58.8]} 29. Re5 {[%clk 0:01:03.2]}
29... a5 {[%clk 0:00:56.6]} 30. a3 {[%clk 0:01:02.1]} 30... axb4 {[%clk
0:00:56.6]} 31. axb4 {[%clk 0:01:02.8]} 31... Re8 {[%clk 0:00:53.1]} 32. Rce1
{[%clk 0:01:02.1]} 32... Rad8 {[%clk 0:00:52.9]} 33. Qe2 {[%clk 0:00:55.6]}
33... Kf8 {[%clk 0:00:51.5]} 34. f4 {[%clk 0:00:49.5]} 34... Qb8 {[%clk
0:00:38]} 35. g4 {[%clk 0:00:43.6]} 35... g6 {[%clk 0:00:34]} 36. Bd3 {[%clk
0:00:39.3]} 36... Nd7 {[%clk 0:00:33.3]} 37. Re7 {[%clk 0:00:26.4]} 37... Nf6
{[%clk 0:00:24.2]} 38. f5 {[%clk 0:00:24.2]} 38... Ne4 {[%clk 0:00:22.6]} 39.
Rxe8+ {[%clk 0:00:23.4]} 39... Rxe8 {[%clk 0:00:22.6]} 40. Qf3 {[%clk
0:00:22.4]} 40... gxf5 {[%clk 0:00:16.6]} 41. gxf5 {[%clk 0:00:20.5]} 41... Qg3+
{[%clk 0:00:16.6]} 42. Qxg3 {[%clk 0:00:20.4]} 42... Nxg3 {[%clk 0:00:17.5]} 43.
Rxe8+ {[%clk 0:00:17.6]} 43... Kxe8 {[%clk 0:00:18.4]} 44. Kf2 {[%clk
0:00:17.2]} 44... Nh5 {[%clk 0:00:18.5]} 45. Kf3 {[%clk 0:00:17.5]} 45... Nf6
{[%clk 0:00:18.9]} 46. Kf4 {[%clk 0:00:17.6]} 46... Ke7 {[%clk 0:00:18.5]} 47.
Be2 {[%clk 0:00:15.7]} 47... Kd7 {[%clk 0:00:18.4]} 48. Ke5 {[%clk 0:00:14.9]}
48... Ke7 {[%clk 0:00:18.7]} 49. Bg4 {[%clk 0:00:13.3]} 49... Nd7+ {[%clk
0:00:19.1]} 50. Kf4 {[%clk 0:00:13.5]} 50... Nf6 {[%clk 0:00:20]} 51. Bf3 {[%clk
0:00:13.3]} 51... Kd7 {[%clk 0:00:20.3]} 52. Kg3 {[%clk 0:00:13.1]} 52... Ke7
{[%clk 0:00:20.9]} 53. Kf4 {[%clk 0:00:12.2]} 53... Nd7 {[%clk 0:00:20.9]} 54.
Bh5 {[%clk 0:00:11.2]} 54... Nf6 {[%clk 0:00:21.3]} 55. Bf3 {[%clk 0:00:10.6]}
1/2-1/2

[Event "Early-Titled-Tuesday-Blitz-April-02-2024"]
[Site "Chess.com"]
[Date "2024.04.02"]
[Round "1"]
[White "The_Sherman_Variation"]
[Black "WiktoriaPOL"]
[Result "0-1"]
[WhiteElo "2604"]
[BlackElo "2316"]
[TimeControl "180+1"]
[EndTime "8:07:43 PDT"]
[Termination "WiktoriaPOL won by checkmate"]

1. Nf3 {[%clk 0:03:00.9]} 1... Nf6 {[%clk 0:02:55.3]} 2. b3 {[%clk 0:02:58.7]}
2... g6 {[%clk 0:02:54.8]} 3. Bb2 {[%clk 0:02:58.6]} 3... Bg7 {[%clk 0:02:53.4]}
4. g3 {[%clk 0:02:59.1]} 4... O-O {[%clk 0:02:52.6]} 5. Bg2 {[%clk 0:02:59.1]}
5... d6 {[%clk 0:02:52.2]} 6. O-O {[%clk 0:02:58.2]} 6... e5 {[%clk 0:02:52]} 7.
c4 {[%clk 0:02:57.2]} 7... Be6 {[%clk 0:02:51.9]} 8. Nc3 {[%clk 0:02:56.9]} 8...
h6 {[%clk 0:02:51.3]} 9. d4 {[%clk 0:02:55]} 9... Nbd7 {[%clk 0:02:46]} 10. e3
{[%clk 0:02:52.5]} 10... c6 {[%clk 0:02:45]} 11. Qc2 {[%clk 0:02:47.2]} 11...
Qc7 {[%clk 0:02:35.9]} 12. Rfd1 {[%clk 0:02:44.4]} 12... Rfe8 {[%clk 0:02:35.1]}
13. h3 {[%clk 0:02:42.5]} 13... e4 {[%clk 0:02:12.6]} 14. Nh2 {[%clk 0:02:28.3]}
14... d5 {[%clk 0:02:09.9]} 15. cxd5 {[%clk 0:02:24.4]} 15... cxd5 {[%clk
0:02:10.8]} 16. Rac1 {[%clk 0:02:22.4]} 16... Qa5 {[%clk 0:02:04.2]} 17. g4
{[%clk 0:02:18.1]} 17... b5 {[%clk 0:01:54.8]} 18. Nf1 {[%clk 0:02:15]} 18...
Rac8 {[%clk 0:01:53.9]} 19. Qe2 {[%clk 0:02:14.1]} 19... a6 {[%clk 0:01:52.2]}
20. Ng3 {[%clk 0:02:07.2]} 20... Rc7 {[%clk 0:01:43.5]} 21. b4 {[%clk 0:01:52]}
21... Qb6 {[%clk 0:01:26]} 22. a3 {[%clk 0:01:48.4]} 22... Qd6 {[%clk
0:01:22.1]} 23. Nb1 {[%clk 0:01:36.7]} 23... Nb6 {[%clk 0:01:19.1]} 24. Nd2
{[%clk 0:01:30.2]} 24... Rec8 {[%clk 0:01:09]} 25. Nb3 {[%clk 0:01:26.1]} 25...
Nc4 {[%clk 0:01:06.3]} 26. Nc5 {[%clk 0:01:23.7]} 26... Qb6 {[%clk 0:00:59]} 27.
Rc2 {[%clk 0:01:13.3]} 27... a5 {[%clk 0:00:54.8]} 28. Rdc1 {[%clk 0:01:12.3]}
28... axb4 {[%clk 0:00:52]} 29. axb4 {[%clk 0:01:13.2]} 29... Ra7 {[%clk
0:00:50.7]} 30. f3 {[%clk 0:01:06.1]} 30... exf3 {[%clk 0:00:36.9]} 31. Bxf3
{[%clk 0:01:07]} 31... Ra2 {[%clk 0:00:32.9]} 32. Bc3 {[%clk 0:00:52.5]} 32...
Rxc2 {[%clk 0:00:30.7]} 33. Rxc2 {[%clk 0:00:53.4]} 33... Ra8 {[%clk 0:00:30.6]}
34. Kg2 {[%clk 0:00:52.7]} 34... Ra3 {[%clk 0:00:24.3]} 35. e4 {[%clk
0:00:50.9]} 35... dxe4 {[%clk 0:00:23.5]} 36. Ngxe4 {[%clk 0:00:51.8]} 36... Nd5
{[%clk 0:00:22.5]} 37. Bd2 {[%clk 0:00:25.1]} 37... Bxd4 {[%clk 0:00:18.9]} 38.
Rxc4 {[%clk 0:00:20.2]} 38... bxc4 {[%clk 0:00:18.6]} 39. Bxh6 {[%clk
0:00:20.8]} 39... Qa7 {[%clk 0:00:13.3]} 40. Kg3 {[%clk 0:00:20.4]} 40... Be5+
{[%clk 0:00:12.5]} 41. Kg2 {[%clk 0:00:19.7]} 41... Ra2 {[%clk 0:00:12.6]} 42.
Nd2 {[%clk 0:00:20.1]} 42... Bg7 {[%clk 0:00:09.8]} 43. Bxg7 {[%clk 0:00:20.2]}
43... Nf4+ {[%clk 0:00:09.7]} 44. Kg3 {[%clk 0:00:20.1]} 44... Nxe2+ {[%clk
0:00:10.3]} 45. Bxe2 {[%clk 0:00:18.5]} 45... Kxg7 {[%clk 0:00:10.9]} 46. Nce4
{[%clk 0:00:17.2]} 46... Qc7+ {[%clk 0:00:10.3]} 47. Kf3 {[%clk 0:00:17.2]}
47... c3 {[%clk 0:00:10.7]} 48. Nb1 {[%clk 0:00:17]} 48... c2 {[%clk 0:00:10.4]}
49. Nbc3 {[%clk 0:00:17.7]} 49... c1=Q {[%clk 0:00:10.2]} 50. Kf2 {[%clk
0:00:18.6]} 50... Q1xc3 {[%clk 0:00:10.2]} 51. Nxc3 {[%clk 0:00:19.3]} 51...
Qxc3 {[%clk 0:00:10.6]} 52. Kf1 {[%clk 0:00:19.5]} 52... Qc1+ {[%clk 0:00:10.7]}
53. Kf2 {[%clk 0:00:20.2]} 53... Qd2 {[%clk 0:00:11]} 54. Kf3 {[%clk 0:00:20.3]}
54... Qxe2+ {[%clk 0:00:11.5]} 55. Kg3 {[%clk 0:00:20.3]} 55... Qf2# {[%clk
0:00:11.4]} 0-1